bitfinex/quotes_SOLUSD_20250624
["timestamp","ask_amount","ask_price","bid_price","bid_amount"]
[1750785322299,7.28,145.09,145.02,8.40081183]
[1750785322300,7.28,145.09,145.08,10.90458235]
[1750785324824,44.66,145.11,145.08,10.90458235]
[1750785325030,44.66,145.11,145.1,10.90458235]
[1750785325525,44.66,145.11,145.04,6.89464975]
[1750785325729,51.55138489,145.11,145.08,10.90458235]
[1750785326710,51.55138489,145.11,145.07,10.90458235]
[1750785326914,51.55138489,145.11,145.08,10.90458235]
[1750785327758,62.45596724,145.11,145.06,10.90458235]
[1750785327929,10.90458235,145.1,145.06,10.90458235]
[1750785328101,51.55138489,145.11,145.03,18.64964886]
[1750785328299,51.55138489,145.11,145.1,10.90458235]
[1750785328529,51.55138489,145.11,145.08,10.90458235]
[1750785329336,44.66,145.11,145.09,10.90458235]
[1750785329829,51.55134803,145.11,145.09,10.90458235]
[1750785330214,44.66,145.11,145.09,10.90458235]
[1750785330417,44.66,145.11,145.1,10.90458235]
[1750785331835,51.88,145.11,145.1,10.90458235]
[1750785335017,51.88,145.11,145.08,1.601]
[1750785335338,58.77145326,145.11,145.04,1.601]
[1750785335537,69.67603561,145.11,145.06,10.90458235]
[1750785336038,86.90434516,145.11,145.06,10.90458235]
[1750785336238,86.90434516,145.11,145.04,1.601]
[1750785336436,86.90434516,145.11,145.05,10.90458235]
[1750785336739,10.90458235,145.09,145.05,10.90458235]
[1750785337239,10.90458235,145.1,145.06,10.90458235]
[1750785338240,6.89227376,145.09,145.06,10.90458235]
[1750785341236,10.90458235,145.08,145.01,6.4292]
[1750785341435,10.90458235,145.05,145.01,10.90458235]
[1750785341616,7.22,145.04,145.0,10.90458235]
[1750785341816,10.90458235,145.03,144.99,10.90458235]
[1750785342138,18.12458235,145.04,144.99,10.90458235]
[1750785342434,18.12458235,145.04,145.0,10.90458235]
[1750785342615,7.22,145.04,145.01,10.90458235]
[1750785342812,7.22,145.04,145.0,10.90458235]
[1750785343237,18.12458235,145.04,144.99,10.90458235]
[1750785343419,6.8956006,145.02,144.99,10.90458235]
[1750785343625,6.89532234,145.03,144.99,10.90458235]
[1750785345640,6.89532234,145.03,145.0,10.90458235]
[1750785346318,6.89532234,145.03,144.99,10.90458235]
[1750785346844,6.89532234,145.03,144.97,6.89784262]
[1750785347042,6.89532234,145.03,144.99,10.90458235]
[1750785347347,7.22,145.02,145.0,10.90458235]
[1750785348233,7.22,145.02,144.98,6.8972043]
[1750785348434,7.22,145.02,145.0,10.90458235]
[1750785348636,7.22,145.02,144.98,6.8972043]
[1750785348846,14.11560781,145.02,145.0,10.90458235]
[1750785349331,14.11560781,145.02,144.97,6.89778063]
[1750785349534,14.11560781,145.02,144.99,10.90458235]
[1750785350151,14.11560781,145.02,144.97,6.89778063]
[1750785350342,14.11560781,145.02,144.99,10.90458235]
[1750785351854,25.02019016,145.02,144.93,1.4229307]
[1750785352054,10.90458235,145.0,144.96,10.90458235]
[1750785352248,6.54042099,145.01,144.96,6.54042099]
[1750785352548,6.54042099,145.0,144.96,6.54042099]
[1750785352747,6.54042099,144.99,144.94,6.54042099]
[1750785353124,6.54042099,144.99,144.95,6.54042099]
[1750785353924,6.8975031,144.98,144.95,6.54042099]
[1750785354331,6.8975031,144.98,144.95,10.90308183]
[1750785354729,6.8975031,144.98,144.93,8.32276484]
[1750785354730,6.8975031,144.98,144.93,1.4229307]
[1750785354958,6.8975031,144.98,144.95,10.90308183]
[1750785355658,6.8975031,144.98,144.94,10.90308183]
[1750785356654,6.8975031,144.98,144.96,10.90308183]
[1750785356847,6.8975031,144.98,144.95,10.90308183]
[1750785357055,6.8975031,144.98,144.94,10.90308183]
[1750785357630,17.80058493,144.98,144.93,12.32601253]
[1750785357833,10.90308183,144.96,144.93,1.4229307]
[1750785358032,6.89940665,144.94,144.93,1.4229307]
[1750785358729,6.89940665,144.94,144.82,3.66005087]
[1750785358730,6.3744,144.93,144.82,3.66005087]
[1750785358931,26.0,144.9,144.82,3.66005087]
[1750785359163,56.02,144.9,144.82,10.90308183]
[1750785359339,56.02,144.9,144.79,6.90625053]
[1750785359538,56.02,144.9,144.83,10.90308183]
[1750785359762,56.02,144.9,144.79,6.90625053]
[1750785360060,6.90321689,144.86,144.82,10.90308183]
[1750785360239,18.06308183,144.85,144.77,6.90750846]
[1750785360443,10.90308183,144.83,144.76,1.6275]
[1750785360650,7.16,144.85,144.76,1.6275]
[1750785360962,8.29069457,144.95,144.92,44.64964886]
[1750785361172,10.0,145.13,144.94,18.64964886]
[1750785361335,10.90308183,145.09,144.96,18.64964886]
[1750785361656,10.90308183,145.08,144.98,18.64964886]
[1750785361834,10.0,145.09,144.91,8.0504]
[1750785362174,17.79535559,145.09,144.94,44.64964886]
[1750785362464,18.06308183,145.08,144.95,0.6895088]
[1750785363258,7.16,145.08,144.96,18.64964886]
[1750785363473,7.16,145.08,145.03,10.90308183]
[1750785363649,33.16,145.08,145.03,10.90308183]
[1750785363835,7.16,145.08,145.03,10.90308183]
[1750785364234,26.0,145.06,145.01,10.90308183]
[1750785364429,26.0,145.06,145.02,10.90308183]
[1750785364974,36.90308183,145.06,145.01,10.90308183]
[1750785365339,26.0,145.06,145.02,10.90308183]
[1750785365868,26.0,145.06,145.03,10.90308183]
[1750785366034,7.16,145.08,145.04,10.90308183]
[1750785366654,24.95584838,145.08,145.03,10.90308183]
[1750785367159,18.06308183,145.08,145.03,10.90308183]
[1750785367458,7.16,145.08,145.04,10.90308183]
[1750785367865,43.79556291,145.09,145.04,10.90308183]
[1750785368247,7.16,145.08,145.04,10.90308183]
[1750785368637,6.89288595,145.08,145.04,10.90308183]
[1750785368840,7.16,145.07,145.03,10.90308183]
[1750785369146,18.06308183,145.07,145.03,10.90308183]
[1750785369553,18.06308183,145.07,145.02,10.90308183]
[1750785370564,10.90308183,145.06,145.01,10.90308183]
[1750785370762,10.90308183,145.05,145.0,10.90308183]
[1750785370970,10.90308183,145.03,144.98,10.90308183]
[1750785371149,10.90308183,145.03,144.95,1.5369]
[1750785371150,10.90308183,145.02,144.97,10.90308183]
[1750785371466,10.90308183,145.01,144.97,10.90308183]
[1750785371769,18.06308183,145.0,144.95,6.89876637]
[1750785371965,7.16,144.99,144.96,10.90308183]
[1750785372140,7.16,144.99,144.94,13.1918221]
[1750785372453,7.16,144.99,144.95,10.90308183]
[1750785372649,14.05709819,144.99,144.95,10.90308183]
[1750785372844,18.06308183,144.99,144.93,6.89947654]
[1750785373039,18.06308183,144.99,144.95,10.90308183]
[1750785373256,7.16,144.99,144.95,10.90308183]
[1750785373652,7.16,144.99,144.96,10.90308183]
[1750785374053,7.16,144.99,144.97,10.90308183]
[1750785374254,7.16,144.99,144.96,10.90308183]
[1750785375154,7.16,144.99,144.98,10.90308183]
[1750785376066,7.16,145.01,144.98,10.90308183]
[1750785376542,7.16,145.01,145.0,10.90308183]
[1750785378568,24.12852374,145.07,145.0,17.79930566]
[1750785378752,7.16,145.03,145.0,10.90308183]
[1750785380568,7.16,145.03,145.01,10.90308183]
[1750785381270,7.16,145.03,145.0,10.90308183]
[1750785382040,14.05515697,145.03,145.0,10.90308183]
[1750785382247,7.16,145.03,145.01,10.90308183]
[1750785382576,7.16,145.03,145.02,10.90308183]
[1750785383759,7.16,145.03,144.99,6.89683487]
[1750785383965,7.16,145.03,145.02,10.90308183]
[1750785384768,7.16,145.03,145.02,17.79868243]
[1750785385485,7.16,145.06,145.02,17.79868243]
[1750785386781,7.16,145.06,145.05,10.90308183]
[1750785388972,7.16,145.06,145.04,10.90308183]
[1750785389851,7.16,145.06,145.05,10.90308183]
[1750785390090,7.21058257,145.12,145.1,18.64964886]
[1750785390374,12.80009136,145.19,145.06,18.64964886]
[1750785390375,3.5989172,145.19,145.14,42.76429677]
[1750785390656,26.0,145.27,145.19,21.80616366]
[1750785390876,26.0,145.24,145.16,18.64964886]
[1750785391057,7.2,145.23,145.16,19.33830378]
[1750785391257,6.88278615,145.29,145.16,19.33830378]
[1750785391459,14.08278615,145.29,145.16,19.33830378]
[1750785391766,26.0,145.26,145.19,18.64964886]
[1750785391966,26.0,145.26,145.18,11.5915735]
[1750785392164,32.8842929,145.26,145.23,10.90308183]
[1750785392880,43.78737473,145.26,145.21,10.90308183]
[1750785393082,60.99789379,145.26,145.21,10.90308183]
[1750785393270,50.09481196,145.26,145.2,10.90308183]
[1750785393457,32.8842929,145.26,145.21,10.90308183]
[1750785393656,43.78737473,145.26,145.21,10.90308183]
[1750785394481,43.78737473,145.26,145.17,6.88830095]
[1750785394682,60.99789379,145.26,145.21,10.90308183]
[1750785394891,10.90308183,145.25,145.2,10.90308183]
[1750785395365,10.90308183,145.25,145.17,18.64964886]
[1750785395568,10.90308183,145.25,145.2,10.90308183]
[1750785395883,10.90308183,145.24,145.16,0.68864478]
[1750785396059,7.9936,145.24,145.13,18.64964886]
[1750785396264,24.09970391,145.23,145.16,10.90308183]
[1750785396482,7.18,145.22,145.16,10.90308183]
[1750785396658,26.0,145.21,145.17,10.90308183]
[1750785396859,26.0,145.21,145.13,19.33846408]
[1750785396860,26.0,145.21,145.18,10.90308183]
[1750785397171,7.18,145.22,145.19,10.90308183]
[1750785398059,14.06645768,145.22,145.15,7.5780375]
[1750785398259,26.0,145.23,145.19,10.90308183]
[1750785398260,7.18,145.21,145.19,10.90308183]
[1750785398687,7.18,145.21,145.16,18.64964886]
[1750785398884,7.18,145.21,145.17,10.90308183]
[1750785399091,26.0,145.2,145.16,10.90308183]
[1750785399269,26.0,145.16,145.12,0.68873344]
[1750785399474,36.90308183,145.17,145.1,18.64964886]
[1750785399657,36.90308183,145.17,145.1,29.55273069]
[1750785399862,36.90308183,145.17,145.12,29.55273069]
[1750785400069,32.88895012,145.16,145.12,29.55273069]
[1750785400493,26.0,145.16,145.12,10.90308183]
[1750785400695,26.0,145.16,145.13,10.90308183]
[1750785403969,32.88911847,145.16,145.13,10.90308183]
[1750785404170,32.88911847,145.16,145.12,29.55273069]
[1750785405680,26.0,145.16,145.12,29.55273069]
[1750785405888,26.0,145.16,145.13,10.90308183]
[1750785407273,26.0,145.16,145.14,10.90308183]
[1750785407606,6.8880011,145.18,145.1,36.44452944]
[1750785407778,6.8880011,145.18,145.14,10.90308183]
[1750785408198,43.79108293,145.18,145.14,10.90308183]
[1750785408604,7.18,145.21,145.15,10.90308183]
[1750785408770,6.88610384,145.22,145.15,10.90308183]
[1750785409105,7.18,145.2,145.16,18.64964886]
[1750785409475,7.18,145.2,145.17,17.79155741]
[1750785410278,7.18,145.2,145.17,6.88847558]
[1750785410600,7.18,145.2,145.19,10.90308183]
[1750785411098,26.0,145.23,145.19,10.90308183]
[1750785411394,32.88574326,145.23,145.19,10.90308183]
[1750785411586,7.18,145.22,145.19,10.90308183]
[1750785412704,7.18,145.22,145.2,10.90308183]
[1750785413309,57.14398183,145.24,145.21,10.90308183]
[1750785413310,44.64,145.24,145.21,10.90308183]
[1750785413600,7.18,145.22,145.21,10.90308183]
[1750785413970,7.18,145.22,145.2,10.90308183]
[1750785415201,7.18,145.22,145.19,10.90308183]
[1750785415400,7.18,145.22,145.21,10.90308183]
[1750785417178,44.64,145.24,145.21,10.90308183]
[1750785417503,44.64,145.24,145.21,17.78953348]
[1750785418393,7.24,145.26,145.22,18.64964886]
[1750785418596,7.24,145.26,145.23,10.90308183]
[1750785419517,14.12451121,145.26,145.23,10.90308183]
[1750785419811,7.24,145.26,145.23,10.90308183]
[1750785420185,7.24,145.26,145.24,10.90308183]
[1750785420506,7.24,145.26,145.25,10.90308183]
[1750785420816,7.24,145.26,145.24,10.90308183]
[1750785421500,14.12432946,145.26,145.24,10.90308183]
[1750785422398,7.24,145.26,145.24,10.90308183]
[1750785423011,7.24,145.26,145.25,10.90308183]
[1750785423318,7.24,145.26,145.23,6.88561226]
[1750785423528,7.24,145.26,145.25,10.90308183]
[1750785424017,7.24,145.26,145.2,10.90308183]
[1750785424018,14.12420762,145.26,145.2,0.68836953]
[1750785424227,14.12420762,145.26,145.22,10.90308183]
[1750785424393,40.12420762,145.26,145.22,10.90308183]
[1750785425406,6.88089176,145.33,145.26,18.64964886]
[1750785425724,27.5135,145.32,145.25,10.90308183]
[1750785425892,10.90308183,145.31,145.25,10.90308183]
[1750785426403,27.5135,145.32,145.26,10.90308183]
[1750785426603,6.88183882,145.31,145.27,10.90308183]
[1750785427199,34.39500696,145.32,145.29,10.90308183]
[1750785427512,1.5135,145.32,145.29,10.90308183]
[1750785427707,6.88110844,145.33,145.3,10.90308183]
[1750785428218,6.88110844,145.33,145.29,10.90308183]
[1750785428722,6.88110844,145.33,145.3,10.90308183]
[1750785428903,6.88110844,145.33,145.29,10.90308183]
[1750785429301,6.88110844,145.33,145.26,18.64964886]
[1750785429518,6.88110844,145.33,145.3,10.90308183]
[1750785430923,5.0907662,145.36,145.32,10.90308183]
[1750785431123,10.90308183,145.34,145.23,2.23441378]
[1750785431425,26.0,145.33,145.29,10.90308183]
[1750785431800,26.0,145.33,145.3,10.90308183]
[1750785431997,31.32017805,145.35,145.31,10.90308183]
[1750785432312,31.32017805,145.35,145.32,10.90308183]
[1750785432508,40.12031565,145.35,145.29,6.88263171]
[1750785432716,56.11965848,145.35,145.3,10.90308183]
[1750785432904,40.12031565,145.35,145.31,10.90308183]
[1750785433104,40.12031565,145.35,145.32,10.90308183]
[1750785433306,32.88031565,145.35,145.31,10.90308183]
[1750785433544,26.0,145.31,145.25,6.88468158]
[1750785433832,26.0,145.31,145.25,10.90308183]
[1750785434037,26.0,145.29,145.22,6.0859]
[1750785434200,26.0,145.29,145.23,10.90308183]
[1750785434404,26.0,145.29,145.24,10.90308183]
[1750785434705,6.88325991,145.28,145.25,10.90308183]
[1750785434909,7.24,145.27,145.25,10.90308183]
[1750785435100,7.24,145.27,145.26,10.90308183]
[1750785435306,7.24,145.27,145.24,18.64964886]
[1750785435511,6.88136526,145.32,145.24,18.64964886]
[1750785435832,7.24,145.31,145.24,18.64964886]
[1750785436125,6.88136526,145.32,145.24,19.33787965]
[1750785436323,7.24,145.3,145.24,19.33787965]
[1750785436506,7.24,145.3,145.26,17.78728574]
[1750785436909,14.12241796,145.3,145.26,10.90308183]
[1750785437230,14.12103529,145.33,145.27,18.64964886]
[1750785437815,14.12103529,145.33,145.3,10.90308183]
[1750785438409,14.12103529,145.33,145.29,10.90308183]
[1750785438835,14.12103529,145.33,145.3,10.90308183]
[1750785439406,14.12103529,145.33,145.27,6.88367479]
[1750785439614,14.12103529,145.33,145.3,10.90308183]
[1750785440538,25.02411712,145.33,145.28,10.90308183]
[1750785440912,14.12103529,145.33,145.29,10.90308183]
[1750785441527,14.12103529,145.33,145.3,10.90308183]
[1750785442043,6.87994496,145.35,145.3,10.90308183]
[1750785442219,7.24,145.34,145.32,10.90308183]
[1750785442610,14.12049062,145.34,145.32,10.90308183]
[1750785442810,14.12049062,145.34,145.31,10.90308183]
[1750785444534,25.02357245,145.34,145.26,19.33780336]
[1750785444735,10.90308183,145.29,145.21,6.3372]
[1750785444910,10.90308183,145.29,145.24,10.90308183]
[1750785445109,1.5409,145.31,145.26,10.90308183]
[1750785445333,12.44398183,145.31,145.26,10.90308183]
[1750785445632,26.0,145.3,145.26,10.90308183]
[1750785446014,26.0,145.3,145.27,10.90308183]
[1750785446219,33.24,145.3,145.28,10.90308183]
[1750785446627,7.24,145.3,145.28,10.90308183]
[1750785448625,7.24,145.3,145.26,6.88412795]
[1750785448827,7.24,145.3,145.28,10.90308183]
[1750785450251,14.12241581,145.3,145.25,25.53418402]
[1750785450419,7.24,145.3,145.27,10.90308183]
[1750785450733,7.24,145.3,145.28,10.90308183]
[1750785451264,14.12254852,145.3,145.26,18.64964886]
[1750785451420,25.02563035,145.3,145.26,10.90308183]
[1750785452754,25.02563035,145.3,145.22,18.64964886]
[1750785452917,25.02563035,145.3,145.26,10.90308183]
[1750785454113,51.02563035,145.3,145.26,10.90308183]
[1750785454318,5.11194993,145.29,145.26,10.90308183]
[1750785454628,10.90308183,145.28,145.23,10.90308183]
[1750785455144,16.01503176,145.29,145.24,10.90308183]
[1750785455314,16.01503176,145.29,145.26,10.90308183]
[1750785455315,5.11194993,145.29,145.26,10.90308183]
[1750785455641,45.23449845,145.3,145.26,10.90308183]
[1750785456332,38.35194993,145.3,145.28,10.90308183]
[1750785456648,7.22,145.3,145.28,10.90308183]
[1750785457221,7.22,145.3,145.29,10.90308183]
[1750785457623,7.22,145.3,145.28,10.90308183]
[1750785457944,7.22,145.3,145.27,10.90308183]
[1750785458333,6.88278615,145.29,145.27,10.90308183]
[1750785458633,6.88278615,145.29,145.26,10.90308183]
[1750785459146,11.99473608,145.29,145.26,10.90308183]
[1750785459351,6.88278615,145.29,145.26,10.90308183]
[1750785460635,17.78586798,145.29,145.25,10.90308183]
[1750785460828,22.89781791,145.29,145.24,10.90308183]
[1750785461143,5.11194993,145.28,145.24,10.90308183]
[1750785461346,16.01503176,145.28,145.23,10.90308183]
[1750785461534,5.11194993,145.28,145.24,10.90308183]
[1750785462234,11.995664,145.28,145.22,25.5357522]
[1750785462429,11.995664,145.28,145.24,10.90308183]
[1750785463836,22.89874583,145.28,145.23,10.90308183]
[1750785464551,22.89874583,145.28,145.22,25.5356352]
[1750785464848,22.89874583,145.28,145.23,10.90308183]
[1750785465037,11.995664,145.28,145.24,10.90308183]
[1750785465355,22.89874583,145.28,145.23,10.90308183]
[1750785465852,22.89874583,145.28,145.22,18.64964886]
[1750785466162,10.90308183,145.26,145.21,10.90308183]
[1750785466338,16.01503176,145.26,145.21,10.90308183]
[1750785467047,6.88468158,145.25,145.21,10.90308183]
[1750785467430,6.88468158,145.25,145.22,10.90308183]
[1750785469149,17.78728945,145.26,145.22,10.90308183]
[1750785469348,10.90308183,145.25,145.21,10.90308183]
[1750785469541,10.90308183,145.25,145.18,18.64964886]
[1750785469542,10.90308183,145.25,145.2,10.90308183]
[1750785469738,16.01503176,145.25,145.2,10.90308183]
[1750785470545,10.90308183,145.25,145.2,10.90308183]
[1750785470840,29.20667661,145.26,145.2,10.90308183]
[1750785471049,29.20667661,145.26,145.22,10.90308183]
[1750785471273,40.10975844,145.26,145.21,10.90308183]
[1750785472046,22.89923938,145.26,145.19,6.88712303]
[1750785472232,22.89923938,145.26,145.22,10.90308183]
[1750785472233,11.99615755,145.26,145.22,10.90308183]
[1750785472427,6.88420762,145.26,145.22,10.90308183]
[1750785473460,17.78728945,145.26,145.22,10.90308183]
[1750785474133,17.78728945,145.26,145.21,10.90308183]
[1750785476758,17.78728945,145.26,145.19,6.8872665]
[1750785476953,10.90308183,145.25,145.21,10.90308183]
[1750785477761,22.89923938,145.26,145.21,10.90308183]
[1750785478262,22.89923938,145.26,145.19,6.8872665]
[1750785478446,22.89923938,145.26,145.21,10.90308183]
[1750785479760,40.10975844,145.26,145.19,6.8872665]
[1750785479967,10.90308183,145.25,145.21,10.90308183]
[1750785480351,6.51844228,145.25,145.21,6.51844228]
[1750785481041,6.8851556,145.24,145.2,6.51844228]
[1750785481240,7.18,145.23,145.2,6.51844228]
[1750785481765,7.18,145.23,145.21,6.51844228]
[1750785481957,7.18,145.23,145.2,6.51844228]
[1750785482160,6.88610384,145.22,145.2,6.51844228]
[1750785482365,6.88610384,145.22,145.19,6.51844228]
[1750785483046,6.88610384,145.22,145.18,6.51844228]
[1750785483554,13.40454612,145.22,145.17,6.51844228]
[1750785484469,6.51844228,145.21,145.16,6.51844228]
[1750785484643,6.51844228,145.2,145.15,6.51844228]
[1750785485345,6.51844228,145.21,145.13,6.073]
[1750785485676,6.51844228,145.18,145.13,6.51844228]
[1750785485844,32.51844228,145.18,145.13,6.51844228]
[1750785486043,26.0,145.18,145.14,6.51844228]
[1750785486779,6.88847558,145.17,145.14,6.51844228]
[1750785486968,32.8882223,145.18,145.15,6.51844228]
[1750785487166,26.0,145.2,145.17,6.51844228]
[1750785487364,26.0,145.19,145.18,6.51844228]
[1750785487740,32.51844228,145.19,145.14,6.51844228]
[1750785488138,26.0,145.19,145.12,18.64964886]
[1750785488368,26.0,145.17,145.14,6.51844228]
[1750785488577,6.88726327,145.2,145.16,6.51844228]
[1750785488782,32.88726327,145.2,145.16,6.51844228]
[1750785489071,32.88726327,145.2,145.17,6.51844228]
[1750785490972,32.88726327,145.2,145.18,6.51844228]
[1750785491279,6.8867716,145.21,145.19,6.51844228]
[1750785492744,6.51844228,145.21,145.16,18.64964886]
[1750785492972,6.51844228,145.21,145.17,6.51844228]
[1750785493763,6.51844228,145.21,145.14,25.53933748]
[1750785493969,6.51844228,145.21,145.16,6.51844228]
[1750785494846,39.40549462,145.2,145.16,6.51844228]
[1750785495050,39.40549462,145.2,145.15,6.51844228]
[1750785495470,6.51844228,145.19,145.15,6.51844228]
[1750785495664,6.51844228,145.19,145.14,6.51844228]
[1750785496852,6.51844228,145.19,145.15,6.51844228]
[1750785497172,56.62312547,145.2,145.15,6.51844228]
[1750785499687,56.62312547,145.2,145.17,6.51844228]
[1750785499688,32.88705234,145.2,145.17,6.51844228]
[1750785500056,32.88705234,145.2,145.16,6.51844228]
[1750785500258,32.88705234,145.2,145.12,25.54049781]
[1750785500462,56.62312547,145.2,145.15,6.51844228]
[1750785500762,6.51844228,145.19,145.15,6.51844228]
[1750785501285,6.8880011,145.18,145.15,6.51844228]
[1750785502770,14.98944338,145.18,145.14,6.51844228]
[1750785505086,6.51844228,145.16,145.09,12.53110347]
[1750785505296,13.69844228,145.15,145.09,19.04954575]
[1750785505660,7.18,145.15,145.09,19.04954575]
[1750785505860,6.51844228,145.14,145.09,19.04954575]
[1750785506091,6.51844228,145.14,145.1,6.51844228]
[1750785506861,13.69844228,145.15,145.1,6.51844228]
[1750785507063,32.8898994,145.14,145.1,6.51844228]
[1750785507367,39.40834168,145.14,145.09,19.04954575]
[1750785507570,6.51844228,145.13,145.09,19.04954575]
[1750785507940,6.51844228,145.12,145.09,12.53110347]
[1750785508062,8.13924228,145.12,145.09,12.53110347]
[1750785508262,6.51844228,145.1,145.09,12.53110347]
[1750785509278,13.41024103,145.1,145.09,12.53110347]
[1750785511311,6.89179875,145.1,145.09,12.53110347]
[1750785511477,13.41024103,145.1,145.09,12.53110347]
[1750785513996,18.64964886,145.09,145.0,6.51844228]
[1750785514305,6.51844228,145.04,144.99,6.51844228]
[1750785514513,6.51844228,145.04,144.97,33.45979648]
[1750785514721,1.5258,145.05,144.98,25.16809114]
[1750785514884,6.51844228,145.03,144.99,6.51844228]
[1750785515387,6.51844228,145.03,144.98,6.51844228]
[1750785515587,6.51844228,145.03,144.95,25.5483905]
[1750785515588,6.8956006,145.02,144.95,25.5483905]
[1750785515901,13.67844228,145.01,144.94,21.52174886]
[1750785516089,6.51844228,145.0,144.96,6.51844228]
[1750785516479,6.51844228,145.0,144.94,6.89923196]
[1750785516675,6.51844228,145.0,144.95,6.51844228]
[1750785516917,6.51844228,144.98,144.91,8.0221169]
[1750785517110,6.51844228,144.98,144.91,6.51844228]
[1750785517111,32.51844228,144.96,144.91,6.51844228]
[1750785517280,6.51844228,144.95,144.91,6.51844228]
[1750785517480,7.16,144.94,144.91,6.51844228]
[1750785517897,7.16,144.94,144.92,6.51844228]
[1750785518283,7.16,144.94,144.91,6.51844228]
[1750785519012,7.16,144.94,144.9,18.64964886]
[1750785519186,7.16,144.94,144.91,6.51844228]
[1750785519786,6.51844228,144.93,144.86,6.5399]
[1750785520108,6.51844228,144.92,144.87,6.51844228]
[1750785520321,6.51844228,144.92,144.83,6.90452142]
[1750785520500,6.51844228,144.92,144.85,6.51844228]
[1750785520817,6.51844228,144.92,144.82,9.71362032]
[1750785520990,1.5158,144.91,144.83,6.51844228]
[1750785521311,6.51844228,144.88,144.83,6.51844228]
[1750785521485,7.16,144.87,144.82,3.65802032]
[1750785521819,7.16,144.87,144.84,6.51844228]
[1750785521987,7.16,144.9,144.88,6.51844228]
[1750785522188,7.16,144.9,144.83,19.33998212]
[1750785522509,7.16,144.9,144.86,10.90968138]
[1750785523494,10.90968138,144.89,144.85,10.90968138]
[1750785523687,17.81157347,144.89,144.85,10.90968138]
[1750785523887,6.90189209,144.89,144.85,10.90968138]
[1750785524712,6.90189209,144.89,144.83,10.90968138]
[1750785524713,36.90968138,144.88,144.83,10.90968138]
[1750785525013,12.56778138,144.87,144.82,14.5677017]
[1750785525203,1.6581,144.87,144.83,10.90968138]
[1750785525410,1.6581,144.87,144.84,10.90968138]
[1750785525614,26.0,144.86,144.84,10.90968138]
[1750785525996,13.38620587,144.89,144.85,10.90968138]
[1750785526195,26.0,144.88,144.85,10.90968138]
[1750785526595,26.0,144.88,144.84,10.90968138]
[1750785526805,36.90968138,144.88,144.83,10.90968138]
[1750785527113,10.90968138,144.87,144.83,10.90968138]
[1750785527488,2.57634805,144.87,144.8,25.5554161]
[1750785527708,6.90321689,144.86,144.82,10.90968138]
[1750785528795,8.7106,144.9,144.86,10.90968138]
[1750785528796,15.61220117,144.9,144.86,10.90968138]
[1750785529000,8.7106,144.9,144.87,10.90968138]
[1750785529411,7.16,144.9,144.86,10.90968138]
[1750785529696,14.06133226,144.9,144.85,10.90968138]
[1750785530313,14.06133226,144.9,144.87,10.90968138]
[1750785531090,33.16,144.9,144.87,10.90968138]
[1750785531509,40.06141774,144.9,144.87,10.90968138]
[1750785531904,33.16,144.9,144.87,10.90968138]
[1750785532217,33.16,144.9,144.88,10.90968138]
[1750785532218,7.16,144.9,144.88,10.90968138]
[1750785532411,7.16,144.9,144.89,10.90968138]
[1750785532819,7.16,144.9,144.89,29.55933024]
[1750785533126,7.16,144.9,144.89,10.90968138]
[1750785534521,7.16,144.9,144.89,29.55933024]
[1750785534721,7.16,144.9,144.87,6.90267849]
[1750785534905,7.16,144.9,144.89,10.90968138]
[1750785535519,7.16,144.9,144.88,10.90968138]
[1750785535824,7.16,144.9,144.89,10.90968138]
[1750785536330,7.16,144.9,144.89,29.55933024]
[1750785536910,8.63807735,144.94,144.9,18.64964886]
[1750785537131,8.63807735,144.94,144.92,18.64964886]
[1750785537438,8.63807735,144.94,144.92,25.54973181]
[1750785538331,8.63807735,144.94,144.92,18.64964886]
[1750785538634,8.63807735,144.94,144.93,10.90968138]
[1750785539527,8.63807735,144.94,144.93,29.55933024]
[1750785539829,8.63807735,144.94,144.93,10.90968138]
[1750785540214,8.63807735,144.94,144.93,17.80956408]
[1750785540421,8.63807735,144.94,144.93,10.90968138]
[1750785540932,8.63807735,144.94,144.92,18.64964886]
[1750785541146,8.63807735,144.94,144.92,10.90968138]
[1750785543020,8.63807735,144.94,144.93,10.90968138]
[1750785543946,8.63807735,144.94,144.9,6.90113972]
[1750785544233,8.63807735,144.94,144.91,6.54472803]
[1750785545030,15.53759616,144.94,144.9,6.54472803]
[1750785545637,22.08232419,144.94,144.9,6.54472803]
[1750785546435,22.08232419,144.94,144.89,6.54472803]
[1750785546742,8.63807735,144.94,144.93,6.54472803]
[1750785547106,7.12,144.96,144.93,6.54472803]
[1750785547834,7.12,144.96,144.95,6.54472803]
[1750785548338,14.01845474,144.96,144.93,10.90593674]
[1750785548504,14.01845474,144.96,144.9,25.55077512]